[Event "CZE-ch U10 Open 2023"]
[Site "Teplice"]
[Date "2023.03.17"]
[Round "8.1"]
[White "Filindash, Nikita"]
[Black "Lutskiy, Mikhail"]
[Result "1-0"]
[ECO "D10"]
[WhiteElo "2021"]
[BlackElo "1150"]
[Annotator "TA"]
[PlyCount "107"]
[EventDate "2023.03.09"]
[EventType "swiss"]
[EventCountry "CZE"]
[SourceTitle "playchess.com"]
[Source "ChessBase"]
[SourceQuality "1"]
[TimeControl "40/5400+30:1800+30"]

{[%evp 16,106,13,0,22,12,31,0,0,0,9,-4,-9,-19,-25,-28,48,-16,393,401,389,383,532,533,550,534,558,561,542,547,702,735,821,830,822,683,672,678,683,680,802,785,816,748,1347,1345,1305,869,1312,1304,1436,1337,1539,1478,2222,1813,29990,29991,29991,29992,29993,29985,29985,29986,29988,29984,29991,29992,29994,29993,29993,29994,29995,29991,29991,29992,29992,29993,29994,29995,29995,29994,29994,29995,29996,29995,29995,29996,29997,29998,29998,29999,29999]} 1. d4 {[%emt 0:00:09]} d5 {[%emt 0:00:18]} 2. c4 {[%emt 0:00:07]} c6 {[%emt 0:00:23]} 3. cxd5 {[%emt 0:00:08]} cxd5 {[%emt 0:00:14]} 4. Bf4 {[%emt 0:00:10]} Nc6 {[%emt 0:00:53]} 5. e3 {[%emt 0:00:09]} Nf6 {[%emt 0:00:39]} 6. Nc3 {[%emt 0:00:20]} a6 {[%emt 0:00:31]} 7. Bd3 {[%emt 0:00:06]} Bg4 {[%emt 0:01:09]} 8. f3 {[%emt 0:06:29]} Bh5 {[%emt 0:02:55]} 9. Nge2 {[%emt 0:00:09]} e6 {[%emt 0:01:45] D10: Slav Defence: 3 cxd5 (without early Nf3) and 3 Nc3.} 10. Rc1 {[%emt 0:04:17]} Rc8 {[%emt 0:02:43] [#]} 11. Bb1 $146 {[%emt 0:07:46]} ({Predecessor:} 11. O-O Be7 12. Bg3 Bg6 13. Nf4 Bxd3 14. Nxd3 O-O 15. Na4 Nd7 16. Nac5 Nxc5 17. Nxc5 Bxc5 18. Rxc5 Qd7 19. Qe2 Ne7 20. Rfc1 Rxc5 21. Rxc5 Rc8 22. Qc2 Rxc5 23. Qxc5 f6 {½-½ Hungaski,R (2511)-Liascovich,L (2472) Buenos Aires Grafica Yael 2017 (1)}) 11... Be7 {[%emt 0:01:31] The position is equal.} 12. O-O {[%emt 0:02:01]} O-O {[%emt 0:01:17]} 13. Na4 {[%emt 0:02:18]} Nd7 {[%emt 0:01:28]} 14. e4 {[%emt 0:19:34]} dxe4 {[%emt 0:00:46]} 15. Bxe4 {[%emt 0:00:13]} Na5 {[%emt 0:03:52]} (15... Nf6 $11 16. Bxc6 Rxc6) 16. Qe1 {[%emt 0:07:22]} (16. Qd2 $14 Nc6 17. d5 exd5 18. Bf5 (18. Bxd5 Bg6 $11) (18. Qxd5 Nf6 $14)) 16... Bg6 $2 {[%emt 0:01:09][%mdl 8192] Black cannot hold the game after this.} (16... Rxc1 $11 {and Black stays safe.} 17. Qxc1 Nf6) 17. Rxc8 $18 {[%emt 0:00:14]} Qxc8 {[%emt 0:00:10]} 18. Qxa5 {[%emt 0:04:43]} b5 19. Rc1 {[%emt 0:00:32]} Qe8 {[%emt 0:02:18]} 20. Nc5 {[%emt 0:03:57]} Nxc5 {[%emt 0:02:14]} 21. dxc5 {[%emt 0:00:48][%cal Bd4c5,Bc5c6,Bc6c7][%mdl 32]} Bxe4 {[%emt 0:05:28] Black is weak on the dark squares} 22. fxe4 {[%emt 0:00:15]} Qa8 {[%emt 0:01:57]} 23. c6 {[%emt 0:02:40]} Qa7+ {[%emt 0:00:32]} 24. Kh1 {[%emt 0:00:25]} Bc5 {[%emt 0:00:50]} 25. Qc7 {[%emt 0:00:10]} Qxc7 {[%emt 0:01:16]} 26. Bxc7 {[%emt 0:00:03]} Rc8 {[%emt 0:01:03]} 27. Bf4 {[%emt 0:00:57]} Bb6 {[%emt 0:00:40]} 28. c7 {[%emt 0:00:08]} f6 {[%emt 0:00:13]} 29. Rc6 {[%emt 0:00:43][%csl LRb6,LRe6]} Bf2 {[%emt 0:03:22]} 30. Rd6 {[%emt 0:00:30] Threatening mate with Rd8+.} Rxc7 {[%emt 0:01:23]} 31. Rd8+ {[%emt 0:00:01][%mdl 64] [#] Discovered Attack} ({Not} 31. Rxe6 Rc2 $14) 31... Kf7 {[%emt 0:00:31]} 32. Bxc7 {[%emt 0:00:23]} Be1 {[%emt 0:00:50]} 33. Ra8 {[%emt 0:00:11]} Ke7 {[%emt 0:04:44]} 34. Rxa6 {[%emt 0:00:07] Ra7 would be deadly.} Kf7 {[%emt 0:01:18]} 35. Ra7 {[%emt 0:00:09] [#] White wants to mate with Bd6+.} Kg6 {[%emt 0:06:53]} 36. Nf4+ {[%emt 0:00:17] White mates.} Kh6 {[%emt 0:01:02]} 37. Nxe6 {[%emt 0:00:09]} Bb4 {[%emt 0:02:37]} 38. a4 {[%emt 0:00:20]} bxa4 {[%emt 0:02:07]} 39. Rxa4 {[%emt 0:00:03]} Be1 {[%emt 0:01:47]} 40. b4 {[%emt 0:00:07]} Bxb4 {[%emt 0:01:14]} 41. Rxb4 {[%emt 0:30:01]} g5 {[%emt 0:30:34]} 42. Rb6 {[%emt 0:00:21]} Kg6 {[%emt 0:01:30]} 43. Nf8+ {[%emt 0:00:17]} Kg7 {[%emt 0:00:16]} 44. Nxh7 {[%emt 0:00:05]} Kxh7 {[%emt 0:00:40]} 45. Rxf6 {[%emt 0:00:48]} Kg7 {[%emt 0:02:01]} 46. e5 {[%emt 0:00:06]} Kh7 {[%emt 0:00:23]} 47. e6 {[%emt 0:00:05]} Kg7 {[%emt 0:00:18]} 48. e7 {[%emt 0:00:07]} Kxf6 {[%emt 0:00:16]} 49. e8=Q {[%emt 0:00:10]} Kf5 {[%emt 0:00:35]} 50. Qe5+ {[%emt 0:00:12]} Kg6 {[%emt 0:00:28]} 51. Bd8 {[%emt 0:00:17]} Kh7 {[%emt 0:00:15]} 52. Qxg5 {[%emt 0:00:15]} Kh8 {[%emt 0:00:35]} 53. Bf6+ {[%emt 0:00:01]} Kh7 {[%emt 0:00:03]} 54. Qg7# {[%emt 0:00:12] Weighted Error Value: White=0.27 (precise) /Black=0.63} 1-0

[Event "CZE-ch U10 Open 2023"]
[Site "Teplice"]
[Date "2023.03.17"]
[Round "8.2"]
[White "Trejbal, Jindrich"]
[Black "Kolar, Edvard"]
[Result "1/2-1/2"]
[ECO "B01"]
[WhiteElo "1937"]
[BlackElo "1518"]
[Annotator "TA"]
[PlyCount "136"]
[EventDate "2023.03.09"]
[EventType "swiss"]
[EventCountry "CZE"]
[SourceTitle "playchess.com"]
[Source "ChessBase"]
[SourceQuality "1"]
[TimeControl "40/5400+30:1800+30"]

{[%evp 9,136,56,49,52,53,49,53,53,69,74,127,133,125,91,120,65,62,0,55,-31,130,118,127,106,96,59,83,29,122,110,171,141,166,168,178,192,178,188,224,170,168,170,162,164,162,162,187,155,163,169,166,161,180,188,183,91,105,99,117,107,97,103,137,118,175,171,214,45,43,67,228,233,252,266,311,296,317,304,629,616,613,580,732,708,690,629,608,593,968,1004,1152,1011,2354,2297,2108,2056,1541,1545,1353,1337,3277,2695,1913,1475,1485,518,1546,584,787,0,0,0,0,0,0,0,0,0,0,0,0,0,0,0,0,0,0,0,0]} 1. e4 {[%emt 0:00:02]} d5 {[%emt 0:00:27]} 2. exd5 {[%emt 0:00:32]} Qxd5 {[%emt 0:00:05]} 3. Nc3 {[%emt 0:00:24]} Qd6 {[%emt 0:00:12]} 4. d4 {[%emt 0:01:24]} c6 {[%emt 0:00:05]} 5. Nf3 {[%emt 0:00:55]} Nf6 {[%emt 0:01:18]} 6. Be2 {[%emt 0:12:07] B01: Scandinavian Defence.} Bf5 {[%emt 0:04:40]} 7. O-O {[%emt 0:06:41]} Nbd7 {[%emt 0:02:39]} 8. Nh4 {[%emt 0:01:57] White is slightly better.} Bg6 {[%emt 0:02:04]} 9. f4 {[%emt 0:07:58] [#] f5 would be deadly.} Be4 $146 {[%emt 0:09:40]} ({Better is} 9... e6) ({Predecessor:} 9... e6 10. f5 exf5 11. Bf4 Qb4 12. Bc7 Qe7 13. Qe1 Nc5 14. Be5 Ncd7 15. Bg3 O-O-O 16. Nxf5 Bxf5 17. Rxf5 {1-0 Hausdorf,H (2222)-Cuccumini,V (2192) W-ch WS/M/481 email 2014}) 10. Nxe4 $16 {[%emt 0:05:29]} Nxe4 {[%emt 0:00:09]} 11. Qd3 {[%emt 0:01:41]} Nef6 {[%emt 0:05:34] [#]} 12. Re1 {[%emt 0:09:46] White is more active.} (12. f5 $1 $16) 12... e6 $14 {[%emt 0:03:36]} 13. f5 {[%emt 0:05:06]} (13. Nf3 $14) 13... O-O-O {[%emt 0:02:25]} (13... e5 $11) 14. c3 {[%emt 0:05:58]} ({White should try} 14. Nf3 $14) 14... Be7 $2 {[%emt 0:06:22]} (14... e5 $15) 15. fxe6 $16 {[%emt 0:07:31]} fxe6 {[%emt 0:03:04]} 16. g3 {[%emt 0:08:38]} Qc7 {[%emt 0:05:54]} 17. Qc4 {[%emt 0:08:05]} Nd5 {[%emt 0:04:24]} 18. Ng2 {[%emt 0:02:14]} ({White should play} 18. Bg4 $16) 18... Rhe8 {[%emt 0:01:06]} (18... Bf6 $11) 19. Bg4 {[%emt 0:02:24]} Bd6 {[%emt 0:06:14]} (19... Nf8 $16) 20. Bg5 {[%emt 0:01:35]} (20. Rxe6 Kb8 $16) 20... N5f6 {[%emt 0:05:15]} 21. Bxe6 {[%emt 0:02:16]} h6 {[%emt 0:01:24]} 22. Bxf6 {[%emt 0:00:20]} gxf6 {[%emt 0:00:05] Black is weak on the light squares} 23. Qf1 {[%emt 0:04:10]} Rf8 {[%emt 0:01:15]} 24. Nf4 {[%emt 0:01:04]} Bxf4 {[%emt 0:01:02]} 25. Qxf4 {[%emt 0:00:14]} ({Much less strong is} 25. gxf4 f5 26. Re2 Kb8 $16) 25... Qxf4 {[%emt 0:03:16]} 26. gxf4 {[%emt 0:00:27]} Kc7 {[%emt 0:00:40]} 27. Re2 {[%emt 0:00:51]} Nb6 {[%emt 0:01:02]} 28. Rae1 {[%emt 0:01:03]} Nd5 {[%emt 0:00:47]} 29. Bxd5 {[%emt 0:00:53]} Rxd5 $18 {[%emt 0:00:05][%mdl 4096] Endgame KRR-KRR} 30. Re7+ {[%emt 0:00:12]} Kb6 {[%emt 0:00:11]} 31. Rg7 {[%emt 0:01:07] Prevents Rg8.} Rf5 {[%emt 0:01:32]} 32. Rg4 {[%emt 0:00:58]} (32. Re4 $18) 32... h5 $16 {[%emt 0:00:40]} 33. Rh4 {[%emt 0:00:09]} Ra5 {[%emt 0:01:16]} 34. a3 {[%emt 0:00:34]} Rb5 {[%emt 0:00:21]} 35. Re2 {[%emt 0:00:07]} Rf5 {[%emt 0:01:50]} 36. Kf2 {[%emt 0:01:05]} Rg8 {[%emt 0:01:29]} (36... c5 $16 {was called for.}) 37. Kf3 {[%emt 0:00:51]} Rd5 {[%emt 0:01:03]} 38. Rg2 $2 {[%emt 0:00:56] Repels Rg1} (38. Re6 $18) 38... Rxg2 $14 {[%emt 0:01:09]} 39. Kxg2 {[%emt 0:00:06] KR-KR} Kc7 $2 {[%emt 0:00:35] [#]} (39... Rb5 $14) 40. Kf3 $1 $18 {[%emt 0:00:18]} Kd6 {[%emt 0:01:50]} 41. Ke4 {[%emt 0:30:49]} Ke6 {[%emt 0:31:27]} 42. c4 {[%emt 0:00:34]} Rf5 {[%emt 0:00:32]} 43. Rh3 {[%emt 0:00:36] And now b4 would win.} b6 $2 {[%emt 0:10:38]} (43... Ra5 44. c5 f5+ 45. Kd3 b6 46. cxb6 (46. Rxh5 bxc5 47. Rh6+ Kd7 $18) 46... axb6 47. Rxh5 Ra4) 44. b4 {[%emt 0:00:31] Black must now prevent Rd3.} b5 {[%emt 0:08:23]} 45. Rc3 {[%emt 0:00:34]} bxc4 {[%emt 0:04:42]} 46. Rxc4 {[%emt 0:00:17]} Rb5 {[%emt 0:00:26]} 47. Rxc6+ {[%emt 0:00:14]} Ke7 {[%emt 0:00:09]} 48. Rc5 {[%emt 0:00:25]} Rb7 {[%emt 0:00:10]} 49. Rxh5 {[%emt 0:00:11]} Ke6 {[%emt 0:00:27]} 50. Rh6 {[%emt 0:00:41] d5+ is the strong threat.} Rf7 {[%emt 0:00:13]} 51. d5+ {[%emt 0:00:31]} Kd6 {[%emt 0:00:56]} 52. Kf5 {[%emt 0:00:43]} Kxd5 {[%emt 0:00:14]} 53. Rxf6 {[%emt 0:00:07]} Rh7 {[%emt 0:00:06]} 54. Rg6 {[%emt 0:00:28]} Rxh2 {[%emt 0:00:08]} 55. Kf6 {[%emt 0:00:11]} Ra2 {[%emt 0:00:18]} 56. Rg3 {[%emt 0:00:18]} Ke4 {[%emt 0:00:40]} 57. Rg7 {[%emt 0:00:45]} (57. Rg4 $142 Kd5 58. Rg5+ Ke4 59. f5) 57... Rxa3 {[%emt 0:00:20]} (57... Kxf4 $142 58. Rxa7 Ke4) 58. f5 {[%emt 0:00:15] Hoping for Rg4+.} Rf3 {[%emt 0:01:32]} 59. Ke6 {[%emt 0:00:59]} ({Inferior is} 59. Rxa7 Rxf5+ 60. Ke7 Rb5 $11) (59. Re7+ $18 Kd5 60. Rxa7) 59... Rxf5 $11 {[%emt 0:00:48] The position is equal.} 60. Rg4+ {[%emt 0:01:23]} Rf4 {[%emt 0:00:22]} 61. Rxf4+ {[%emt 0:00:09]} Kxf4 {[%emt 0:00:13] KP-KP} 62. Kd5 {[%emt 0:00:08]} Ke3 {[%emt 0:01:15]} 63. Kc6 {[%emt 0:01:18]} Kd4 {[%emt 0:00:41]} 64. Kb5 {[%emt 0:00:37]} Kd5 {[%emt 0:00:23]} 65. Ka5 {[%emt 0:00:36]} Kc4 {[%emt 0:00:32]} 66. b5 {[%emt 0:00:19]} Kc5 {[%emt 0:00:12]} 67. Ka6 {[%emt 0:00:06]} Kb4 {[%emt 0:00:13]} 68. Kxa7 {[%emt 0:00:18] White threatens b6 and mate.} Kxb5 {Black escapes into a draw.   Weighted Error Value: White=0.22 (precise) /Black=0.42} 1/2-1/2

[Event "CZE-ch U10 Open 2023"]
[Site "Teplice"]
[Date "2023.03.17"]
[Round "8.3"]
[White "Skoloud, Josef"]
[Black "Kozusnik, Jan"]
[Result "1-0"]
[ECO "C36"]
[WhiteElo "1090"]
[BlackElo "1286"]
[Annotator "NA RC COMBH"]
[PlyCount "77"]
[EventDate "2023.03.09"]
[EventType "swiss"]
[EventCountry "CZE"]
[SourceTitle "playchess.com"]
[Source "ChessBase"]
[SourceQuality "1"]
[TimeControl "40/5400+30:1800+30"]

1. e4 {[%emt 0:00:02]} e5 {[%emt 0:00:06]} 2. f4 {[%emt 0:00:05]} exf4 {[%emt 0:00:11]} 3. Nf3 {[%emt 0:00:06]} d5 {[%emt 0:00:18]} 4. e5 {[%emt 0:00:13]} c5 {[%emt 0:00:46]} 5. c3 {[%emt 0:01:59]} Nc6 {[%emt 0:03:44]} 6. d4 {[%emt 0:00:52]} Bg4 7. Be2 {[%emt 0:06:45]} Bxf3 {[%emt 0:06:12]} 8. Bxf3 Qh4+ {[%emt 0:01:56]} 9. Kf1 {[%emt 0:01:18]} Rd8 {[%emt 0:03:27]} 10. Qb3 {[%emt 0:02:25]} Rd7 {[%emt 0:17:07]} 11. Bxd5 {[%emt 0:04:28]} Nh6 {[%emt 0:03:15]} 12. Bxc6 {[%emt 0:05:52]} bxc6 13. Qb8+ {[%emt 0:00:37]} Ke7 {[%emt 0:02:06]} 14. e6 {[%emt 0:01:25]} fxe6 {[%emt 0:02:24]} 15. Qxf4 {[%emt 0:03:13]} Qxf4+ {[%emt 0:00:19]} 16. Bxf4 {[%emt 0:00:13]} cxd4 {[%emt 0:00:12]} 17. Ke2 {[%emt 0:01:20]} Nf7 {[%emt 0:01:59]} 18. cxd4 {[%emt 0:01:00]} Rxd4 {[%emt 0:00:11]} 19. Be3 {[%emt 0:00:27]} Rd7 {[%emt 0:02:23]} 20. Nd2 {[%emt 0:03:00]} Ne5 {[%emt 0:03:06]} 21. Rac1 {[%emt 0:02:00]} Rb7 {[%emt 0:05:21]} 22. Bd4 {[%emt 0:03:21]} Rb5 {[%emt 0:06:13]} 23. Rc5 {[%emt 0:03:44]} Rxc5 {[%emt 0:01:55]} 24. Bxc5+ {[%emt 0:00:10]} Kd7 {[%emt 0:01:03]} 25. Bxa7 {[%emt 0:00:12]} Bd6 {[%emt 0:01:35]} 26. Bd4 {[%emt 0:02:13]} Rf8 {[%emt 0:05:49]} 27. Rd1 {[%emt 0:01:38]} Rf5 {[%emt 0:03:32]} 28. h3 {[%emt 0:03:00]} g6 {[%emt 0:07:50]} 29. Ne4 {[%emt 0:02:33]} Nf7 {[%emt 0:04:09]} 30. g4 {[%emt 0:02:02]} Rf4 {[%emt 0:07:47]} 31. Nxd6 {[%emt 0:00:23]} Nxd6 {[%emt 0:00:53]} 32. Bc5 {[%emt 0:00:25]} Re4+ {[%emt 0:03:44]} 33. Kf3 {[%emt 0:01:17]} Re5 {[%emt 0:00:55]} 34. Bxd6 {[%emt 0:00:24]} Rb5 {[%emt 0:01:00]} 35. Bc5+ {[%emt 0:00:45]} Kc7 {[%emt 0:00:45]} 36. b4 {[%emt 0:00:14]} Rb7 {[%emt 0:00:56]} 37. a4 {[%emt 0:00:13]} Kc8 {[%emt 0:00:58]} 38. Rd6 {[%emt 0:00:19]} Rf7+ {[%emt 0:02:27]} 39. Ke4 {[%emt 0:01:56]} 1-0

[Event "CZE-ch U10 Open 2023"]
[Site "Teplice"]
[Date "2023.03.17"]
[Round "8.4"]
[White "Velim, Vojtech"]
[Black "Moravec, Rene"]
[Result "1-0"]
[ECO "A52"]
[WhiteElo "1369"]
[BlackElo "1216"]
[Annotator "NA RC COMBH"]
[PlyCount "63"]
[EventDate "2023.03.09"]
[EventType "swiss"]
[EventCountry "CZE"]
[SourceTitle "playchess.com"]
[Source "ChessBase"]
[SourceQuality "1"]
[TimeControl "40/5400+30:1800+30"]

1. d4 {[%emt 0:00:03]} Nf6 {[%emt 0:00:08]} 2. c4 {[%emt 0:00:05]} e5 {[%emt 0:00:07]} 3. dxe5 {[%emt 0:00:10]} Ng4 {[%emt 0:00:12]} 4. e4 {[%emt 0:00:08]} Nxe5 {[%emt 0:00:08]} 5. f4 {[%emt 0:00:08]} Nec6 {[%emt 0:00:05]} 6. Be3 {[%emt 0:00:18]} Na6 {[%emt 0:00:06]} 7. Nc3 {[%emt 0:01:18]} Bc5 {[%emt 0:00:11]} 8. Bxc5 {[%emt 0:01:58]} Nxc5 {[%emt 0:00:47]} 9. Nf3 {[%emt 0:04:30]} d6 {[%emt 0:00:13]} 10. Be2 {[%emt 0:03:03]} Bd7 {[%emt 0:00:30]} 11. O-O {[%emt 0:01:45]} O-O {[%emt 0:00:10]} 12. a3 {[%emt 0:01:31]} a5 {[%emt 0:00:10]} 13. Rb1 {[%emt 0:03:13]} f5 {[%emt 0:02:54]} 14. e5 {[%emt 0:05:51]} dxe5 {[%emt 0:02:42]} 15. Qd5+ {[%emt 0:02:25]} Ne6 {[%emt 0:01:18]} 16. Nxe5 {[%emt 0:05:59]} Nxe5 {[%emt 0:02:47]} 17. fxe5 {[%emt 0:01:15]} Qc8 {[%emt 0:03:56]} 18. c5 {[%emt 0:18:53]} Bc6 {[%emt 0:02:39]} 19. Qc4 {[%emt 0:02:32]} Kh8 {[%emt 0:02:58]} 20. b4 {[%emt 0:03:20]} axb4 {[%emt 0:02:01]} 21. axb4 {[%emt 0:00:11]} b6 {[%emt 0:03:00]} 22. b5 {[%emt 0:03:28]} Be8 {[%emt 0:00:58]} 23. Bf3 {[%emt 0:01:40]} Ra5 {[%emt 0:01:10]} 24. cxb6 {[%emt 0:01:21]} Bf7 {[%emt 0:04:14]} 25. b7 {[%emt 0:01:34]} Qb8 {[%emt 0:03:29]} 26. Qb4 {[%emt 0:08:55]} Ra7 {[%emt 0:04:18]} 27. Qe7 {[%emt 0:04:53]} Nd4 {[%emt 0:04:21]} 28. Bc6 {[%emt 0:02:33]} Nxc6 {[%emt 0:03:58]} 29. bxc6 {[%emt 0:00:12]} Ra6 {[%emt 0:01:32]} 30. Qc5 {[%emt 0:03:23]} Bg6 {[%emt 0:02:16]} 31. Ra1 {[%emt 0:00:45]} Rxa1 {[%emt 0:02:11]} 32. Rxa1 {[%emt 0:00:11]} 1-0

[Event "CZE-ch U10 Open 2023"]
[Site "Teplice"]
[Date "2023.03.17"]
[Round "8.5"]
[White "Kroulik, Stepan"]
[Black "Fadrny, Jachym"]
[Result "1-0"]
[ECO "D00"]
[WhiteElo "1228"]
[BlackElo "1279"]
[Annotator "NA RC COMBH"]
[PlyCount "79"]
[EventDate "2023.03.09"]
[EventType "swiss"]
[EventCountry "CZE"]
[SourceTitle "playchess.com"]
[Source "ChessBase"]
[SourceQuality "1"]
[TimeControl "40/5400+30:1800+30"]

1. d4 {[%emt 0:00:05]} d5 {[%emt 0:00:41]} 2. Bf4 {[%emt 0:00:05]} Nf6 {[%emt 0:00:18]} 3. e3 {[%emt 0:00:13]} e6 {[%emt 0:00:13]} 4. Nf3 {[%emt 0:00:17]} Nbd7 {[%emt 0:00:33]} 5. Nbd2 {[%emt 0:01:03]} b6 {[%emt 0:01:17]} 6. c3 {[%emt 0:00:41]} Bb7 {[%emt 0:00:12]} 7. Be2 {[%emt 0:00:45]} Be7 {[%emt 0:00:11]} 8. O-O {[%emt 0:00:58]} O-O {[%emt 0:00:31]} 9. Rc1 {[%emt 0:03:49]} c5 {[%emt 0:00:53]} 10. h3 {[%emt 0:03:32]} c4 {[%emt 0:03:10]} 11. b3 {[%emt 0:03:09]} b5 {[%emt 0:00:19]} 12. bxc4 {[%emt 0:02:22]} bxc4 {[%emt 0:00:24]} 13. Rb1 {[%emt 0:00:40]} Nb6 {[%emt 0:01:08]} 14. Ne5 {[%emt 0:02:47]} Nfd7 {[%emt 0:04:47]} 15. Ndf3 {[%emt 0:03:41]} Nxe5 {[%emt 0:01:55]} 16. Bxe5 {[%emt 0:03:23]} Bc6 {[%emt 0:01:06]} 17. Qd2 {[%emt 0:02:00]} Na4 {[%emt 0:02:04]} 18. Bd1 {[%emt 0:03:46]} Qa5 {[%emt 0:04:05]} 19. Bxa4 {[%emt 0:01:52]} Bxa4 {[%emt 0:02:32]} 20. Rb7 {[%emt 0:01:58]} Qd8 {[%emt 0:01:48]} 21. Rfb1 {[%emt 0:07:43]} Bd6 {[%emt 0:06:54]} 22. Qb2 {[%emt 0:05:23]} Bc6 {[%emt 0:01:34]} 23. Bxd6 {[%emt 0:02:09]} Qxd6 {[%emt 0:01:43]} 24. Rb4 {[%emt 0:00:56]} f6 {[%emt 0:06:48]} 25. Qe2 {[%emt 0:04:28]} e5 {[%emt 0:03:04]} 26. Qc2 {[%emt 0:05:22]} e4 {[%emt 0:01:11]} 27. Nd2 {[%emt 0:01:09]} f5 {[%emt 0:02:35]} 28. Qd1 {[%emt 0:08:38]} f4 {[%emt 0:02:29]} 29. Qg4 {[%emt 0:01:38]} Rf6 {[%emt 0:01:58]} 30. exf4 {[%emt 0:02:08]} Rxf4 {[%emt 0:03:07]} 31. Qe2 {[%emt 0:01:45]} Raf8 {[%emt 0:03:02]} 32. f3 {[%emt 0:00:51]} Qg6 {[%emt 0:01:25]} 33. Kh1 {[%emt 0:06:01]} exf3 {[%emt 0:04:01]} 34. Nxf3 {[%emt 0:01:04]} Kh8 {[%emt 0:22:06]} 35. Ne5 {[%emt 0:03:54]} Qe6 {[%emt 0:00:51]} 36. Rb8 {[%emt 0:02:57]} Be8 {[%emt 0:01:37]} 37. Qd2 {[%emt 0:02:41]} Qh6 {[%emt 0:01:55]} 38. Qe2 {[%emt 0:02:10]} Rf2 {[%emt 0:01:29]} 39. Rxe8 {[%emt 0:02:50]} Rxe8 {[%emt 0:07:43]} 40. Nf7+ {[%emt 0:00:53]} 1-0

[Event "CZE-ch U10 Open 2023"]
[Site "Teplice"]
[Date "2023.03.17"]
[Round "8.6"]
[White "Vo, Daniel"]
[Black "Gernert, Tomas"]
[Result "0-1"]
[ECO "A10"]
[WhiteElo "1440"]
[BlackElo "1362"]
[Annotator "NA RC COMBH"]
[PlyCount "114"]
[EventDate "2023.03.09"]
[EventType "swiss"]
[EventCountry "CZE"]
[SourceTitle "playchess.com"]
[Source "ChessBase"]
[SourceQuality "1"]
[TimeControl "40/5400+30:1800+30"]

1. c4 {[%emt 0:10:02]} d5 {[%emt 0:00:08]} 2. cxd5 Nf6 {[%emt 0:00:05]} 3. d4 {[%emt 0:00:18]} Nxd5 {[%emt 0:00:12]} 4. Nc3 {[%emt 0:00:16]} Bf5 {[%emt 0:01:37]} 5. Qb3 {[%emt 0:00:36]} Nxc3 {[%emt 0:01:24]} 6. bxc3 {[%emt 0:01:47]} b6 {[%emt 0:02:12]} 7. g3 {[%emt 0:00:41]} Be4 {[%emt 0:01:08]} 8. Nf3 {[%emt 0:00:40]} e6 {[%emt 0:04:04]} 9. Bg2 {[%emt 0:01:16]} Be7 {[%emt 0:01:12]} 10. Ba3 {[%emt 0:01:44]} O-O {[%emt 0:03:49]} 11. O-O {[%emt 0:00:55]} Bxa3 {[%emt 0:05:34]} 12. Qxa3 {[%emt 0:02:46]} Nd7 {[%emt 0:02:13]} 13. Rfd1 {[%emt 0:03:43]} Nf6 {[%emt 0:01:19]} 14. Rac1 {[%emt 0:00:39]} Qd6 {[%emt 0:03:22]} 15. Qb2 {[%emt 0:00:37]} Rac8 {[%emt 0:07:00]} 16. c4 {[%emt 0:00:48]} c5 {[%emt 0:02:53]} 17. dxc5 {[%emt 0:01:20]} Qxc5 {[%emt 0:00:23]} 18. Nh4 {[%emt 0:00:32]} Bxg2 {[%emt 0:03:16]} 19. Nxg2 {[%emt 0:03:19]} Ng4 {[%emt 0:01:01]} 20. Rf1 {[%emt 0:01:40]} Qh5 {[%emt 0:00:44]} 21. Nh4 {[%emt 0:00:34]} g5 {[%emt 0:00:26]} 22. h3 {[%emt 0:00:37]} gxh4 {[%emt 0:00:42]} 23. hxg4 {[%emt 0:00:17]} Qxg4 {[%emt 0:00:10]} 24. Qb3 {[%emt 0:00:17]} Rc5 {[%emt 0:00:35]} 25. Qf3 {[%emt 0:00:24]} Qg6 {[%emt 0:00:50]} 26. Rc3 {[%emt 0:00:50]} Rg5 {[%emt 0:00:38]} 27. Rd1 {[%emt 0:01:07]} f5 {[%emt 0:02:38]} 28. Rd4 {[%emt 0:02:02]} e5 {[%emt 0:01:04]} 29. Rxh4 {[%emt 0:00:15]} Qf6 {[%emt 0:06:47]} 30. Qb7 {[%emt 0:01:34]} Rg7 {[%emt 0:01:06]} 31. Qd5+ {[%emt 0:00:19]} Kh8 {[%emt 0:00:46]} 32. Rh2 {[%emt 0:00:28]} Rd8 {[%emt 0:01:04]} 33. Qb5 {[%emt 0:01:56]} Rd1+ {[%emt 0:01:07]} 34. Kg2 {[%emt 0:00:49]} f4 {[%emt 0:01:30]} 35. Qe8+ {[%emt 0:01:58]} Rg8 {[%emt 0:00:10]} 36. Qh5 {[%emt 0:00:13]} Qc6+ {[%emt 0:03:36]} 37. Rf3 {[%emt 0:00:34]} Qc7 {[%emt 0:07:50]} 38. Rh3 {[%emt 0:00:41]} Rd7 {[%emt 0:06:58]} 39. Kh2 {[%emt 0:02:17]} Re7 {[%emt 0:05:08]} 40. Qh6 {[%emt 0:02:06]} Qxc4 {[%emt 0:03:12]} 41. Qf6+ {[%emt 0:30:24]} Rgg7 {[%emt 0:30:11]} 42. Qf8+ {[%emt 0:00:31]} Qg8 {[%emt 0:00:05]} 43. Qf6 {[%emt 0:00:59]} Qxa2 {[%emt 0:04:04]} 44. Qf8+ {[%emt 0:00:10]} Qg8 {[%emt 0:00:06]} 45. Qf6 {[%emt 0:00:19]} Qf7 {[%emt 0:00:15]} 46. Qd6 {[%emt 0:03:57]} fxg3+ {[%emt 0:01:06]} 47. fxg3 {[%emt 0:00:12]} Qe6 {[%emt 0:01:52]} 48. Qd3 {[%emt 0:00:43]} Re8 {[%emt 0:00:47]} 49. Rf5 {[%emt 0:01:37]} Rd7 {[%emt 0:01:14]} 50. Qe4 {[%emt 0:00:48]} Qd5 {[%emt 0:01:33]} 51. Qb4 {[%emt 0:01:17]} Qc5 {[%emt 0:01:05]} 52. Qa4 {[%emt 0:00:29]} Red8 {[%emt 0:00:54]} 53. Qh4 {[%emt 0:00:23]} Qe3 {[%emt 0:01:35]} 54. Qf6+ {[%emt 0:00:16]} Rg7 {[%emt 0:04:25]} 55. Qxd8+ {[%emt 0:00:14]} Rg8 {[%emt 0:00:07]} 56. Qd3 {[%emt 0:00:29]} Qc5 {[%emt 0:00:57]} 57. Qd8 {[%emt 0:01:27]} Rxd8 {[%emt 0:00:02]} 0-1